bitfinex-derivatives/quotes_SOLF0:USTF0_20240827
["timestamp","ask_amount","ask_price","bid_price","bid_amount"]
[1724769273080,0.04199266,155.75,155.72,0.04559254]
[1724769273487,24.69,155.73,155.47,19.25436452]
[1724769273683,24.69,155.72,155.63,6.02]
[1724769273882,25.9586,155.72,155.63,6.02]
[1724769274078,3.2116,155.7,155.65,3.2124]
[1724769274285,25.9586,155.72,155.63,6.02]
[1724769274486,0.04883748,155.69,155.66,0.04772935]
[1724769275586,3.26053748,155.69,155.66,0.04772935]
[1724769276289,0.04883748,155.69,155.66,3.25992935]
[1724769277581,24.73883748,155.69,155.66,0.04772935]
[1724769277996,3.2124,155.66,155.58,6.02]
[1724769278394,3.2124,155.66,155.57,35.10763411]
[1724769278694,3.2124,155.66,155.61,3.2131]
[1724769278892,3.25775311,155.65,155.62,0.04266879]
[1724769279094,0.04535311,155.65,155.62,0.04266879]
[1724769280491,3.25795311,155.65,155.62,0.04266879]
[1724769281390,3.2129,155.63,155.62,0.04266879]
[1724769281689,29.14084267,155.64,155.53,7.259]
[1724769281897,24.69,155.62,155.55,3.2144]
[1724769282084,27.84102827,155.62,155.55,3.2144]
[1724769282289,3.2136,155.6,155.55,3.2144]
[1724769282489,0.04920998,155.59,155.56,3.25781696]
[1724769282691,0.04920998,155.59,155.56,0.04351696]
[1724769283403,0.04920998,155.59,155.56,3.25771696]
[1724769283697,0.04920998,155.59,155.56,0.04351696]
[1724769284090,0.04920998,155.59,155.56,3.25781696]
[1724769284294,0.04920998,155.59,155.56,0.04351696]
[1724769287098,0.04920998,155.59,155.56,3.25781696]
[1724769287998,0.04920998,155.59,155.56,0.04351696]
[1724769288500,3.2148,155.54,155.45,24.69]
[1724769289093,3.2148,155.54,155.44,62.71847429]
[1724769289295,0.04662604,155.51,155.47,0.04898255]
[1724769289712,0.04662604,155.51,155.46,24.69]
[1724769289713,24.69,155.48,155.36,16.98]
[1724769289898,25.7,155.51,155.32,1.7304]
[1724769290198,3.2164,155.46,155.35,24.69]
[1724769290500,30.71,155.47,155.35,27.95173633]
[1724769290701,0.04520125,155.43,155.39,0.04301163]
[1724769291999,24.69,155.42,155.39,0.04301163]
[1724769292397,27.9076,155.4,155.39,0.04301163]
[1724769292600,24.69,155.37,155.34,1.2633]
[1724769292798,24.69,155.37,155.32,1.2458]
[1724769293108,24.69,155.35,155.28,1.2633]
[1724769293502,0.04813059,155.33,155.3,0.046094]
[1724769293997,3.28295819,155.49,155.3,24.736094]
[1724769294306,24.69,155.45,155.32,24.69]
[1724769294509,3.2179,155.39,155.33,3.2189]
[1724769294804,27.89256179,155.43,155.3,24.69]
[1724769294997,0.04145252,155.38,155.35,0.04244481]
[1724769295204,24.73593827,155.38,155.35,0.04104892]
[1724769295701,0.04593827,155.38,155.35,0.04104892]
[1724769295905,24.69,155.37,155.35,0.04104892]
[1724769296098,0.04593827,155.38,155.35,0.04104892]
[1724769296301,6.06593827,155.38,155.35,0.04104892]
[1724769296603,0.04593827,155.38,155.35,0.04104892]
[1724769296908,3.2184,155.36,155.35,0.04104892]
[1724769297098,24.69,155.36,155.28,1.2633]
[1724769297298,24.69,155.32,155.2,27.95398713]
[1724769297504,24.69,155.32,155.22,2.6354]
[1724769298001,0.04782299,155.29,155.25,0.04214194]
[1724769298197,0.04782299,155.29,155.25,24.73214194]
[1724769298397,0.04782299,155.29,155.25,0.04214194]
[1724769299298,0.04782299,155.29,155.26,3.2204]
[1724769300192,0.04782299,155.29,155.25,0.04214194]
[1724769300705,0.04782299,155.29,155.26,3.2204]
[1724769301600,3.2193,155.33,155.27,3.2203]
[1724769301805,6.04,155.35,155.27,3.2203]
[1724769302207,3.2199,155.3,155.23,1.2371]
[1724769302407,24.69,155.33,155.23,1.2371]
[1724769302608,0.04908533,155.3,155.26,0.04221916]
[1724769302805,3.2203,155.27,155.26,0.04221916]
[1724769303199,0.04908533,155.3,155.26,0.04221916]
[1724769303405,3.2203,155.28,155.26,0.04221916]
[1724769303607,0.04908533,155.3,155.26,0.04221916]
[1724769303811,3.2203,155.28,155.26,0.04221916]
[1724769304912,3.2203,155.27,155.26,0.04221916]
[1724769305707,24.69,155.29,155.05,9.61051203]
[1724769305911,24.69,155.29,155.19,3.2218]
[1724769306311,3.2211,155.24,155.19,3.2218]
[1724769306615,24.69,155.27,155.18,3.2221]
[1724769306809,3.2213,155.23,155.21,0.04198182]
[1724769307512,3.2213,155.23,155.09,6.02]
[1724769307513,6.02,155.22,155.12,24.69]
[1724769307716,24.69,155.25,155.12,24.69]
[1724769307918,1.0,155.26,155.19,24.69]
[1724769308113,24.69,155.33,155.22,24.69]
[1724769308416,3.2203,155.28,155.26,0.04913286]
[1724769309009,3.26248634,155.29,155.26,0.04913286]
[1724769309210,0.04258634,155.29,155.26,0.04913286]
[1724769309417,6.02,155.36,155.27,24.69]
[1724769309622,24.69,155.37,155.28,1.306]
[1724769310330,3.2194,155.32,155.28,1.306]
[1724769310525,3.26771329,155.32,155.28,1.35444583]
[1724769310729,3.26771329,155.32,155.28,4.57454583]
[1724769311222,0.04831329,155.32,155.29,3.2199]
[1724769311422,0.04831329,155.32,155.28,1.35444583]
[1724769311819,0.04831329,155.32,155.28,0.04844583]
[1724769312133,24.69,155.29,155.2,1.3272]
[1724769312329,3.22,155.29,155.2,29.2644494]
[1724769312531,3.22,155.29,155.2,26.0172]
[1724769312831,6.02,155.32,155.21,3.21794268]
[1724769313024,0.04888737,155.28,155.25,0.04447799]
[1724769313625,0.04888737,155.28,155.26,3.2204]
[1724769313823,0.04888737,155.28,155.25,0.04447799]
[1724769314821,0.04888737,155.28,155.25,3.26507799]
[1724769315225,0.04888737,155.28,155.25,0.04447799]
[1724769315436,3.2203,155.27,155.25,0.04447799]
[1724769315626,0.04888737,155.28,155.25,0.04447799]
[1724769315825,24.73888737,155.28,155.25,0.04447799]
[1724769316023,24.73888737,155.28,155.08,6.4483]
[1724769316024,24.69,155.26,155.17,2.5564]
[1724769316229,24.69,155.23,155.17,2.5564]
[1724769316631,6.02,155.27,155.17,2.5564]
[1724769316825,24.69,155.23,155.17,2.5564]
[1724769317026,0.0456744,155.22,155.18,0.0455377]
[1724769317429,24.69,155.21,155.18,0.0455377]
[1724769317736,3.222,155.19,155.18,0.0455377]
[1724769317931,27.912,155.19,155.18,0.0455377]
[1724769318430,0.0456744,155.22,155.18,0.0455377]
[1724769318431,6.0656744,155.22,155.18,0.0455377]
[1724769318630,0.0456744,155.22,155.18,0.0455377]
[1724769319241,3.2216,155.21,155.18,0.0455377]
[1724769320131,3.2218,155.2,155.18,0.0455377]
[1724769320529,3.23868319,155.22,155.18,0.0455377]
[1724769320722,27.92868319,155.22,155.18,0.0455377]
[1724769320929,24.69,155.2,155.18,0.0455377]
[1724769321124,24.69,155.2,155.09,1.2025]
[1724769321326,24.69,155.17,155.09,1.2025]
[1724769321931,24.69,155.17,155.12,3.2233]
[1724769322231,0.04441796,155.16,155.13,0.0427538]
[1724769323338,3.2228,155.15,155.13,0.0427538]
[1724769324742,3.26711796,155.16,155.13,0.0427538]
[1724769325135,3.26711796,155.16,155.13,3.2659538]
[1724769325434,0.04441796,155.16,155.13,0.0427538]
[1724769325839,24.69,155.24,155.14,24.69]
[1724769326037,6.02,155.23,155.15,1.2009]
[1724769326229,6.02,155.23,155.19,3.222]
[1724769326430,6.424,155.33,155.18,24.69]
[1724769326431,360.69,155.28,155.18,24.69]
[1724769326634,30.71,155.28,155.18,24.69]
[1724769326842,0.04678445,155.25,155.21,0.0421732]
[1724769327339,0.04678445,155.25,155.24,3.2209]
[1724769327845,0.04678445,155.25,155.21,24.7321732]
[1724769328048,0.04678445,155.25,155.21,0.0421732]
[1724769328340,24.73678445,155.25,155.21,0.0421732]
[1724769328543,3.221,155.24,155.21,0.0421732]
[1724769329039,3.2213,155.22,155.21,0.0421732]
[1724769331040,3.2212,155.23,155.21,0.0421732]
[1724769331237,0.04678445,155.25,155.21,0.0421732]
[1724769332340,3.2213,155.23,155.21,0.0421732]
[1724769332542,0.04678445,155.25,155.21,0.0421732]
[1724769332743,3.26768445,155.25,155.21,3.2635732]
[1724769333044,3.26768445,155.25,155.08,29.71]
[1724769333045,29.71,155.23,155.08,29.71]
[1724769333244,29.71,155.21,155.12,2.4971]
[1724769333446,29.71,155.19,155.09,1.3192]
[1724769333643,29.71,155.19,155.09,2.5231]
[1724769333844,29.71,155.19,155.12,0.04245047]
[1724769334047,29.71,155.13,155.12,0.04245047]
[1724769334545,32.9334,155.13,155.12,0.04245047]
[1724769338050,3.2234,155.13,155.12,0.04245047]
[1724769340552,6.06156201,155.16,155.12,0.04245047]
[1724769340553,3.2228,155.15,155.12,0.04245047]
[1724769340746,0.04156201,155.16,155.12,0.04245047]
[1724769341750,3.26426201,155.16,155.12,0.04245047]
[1724769341949,0.04156201,155.16,155.12,0.04245047]
[1724769342251,3.2231,155.14,155.12,0.04245047]
[1724769342752,0.04156201,155.16,155.12,0.04245047]
[1724769345951,3.2229,155.15,155.12,3.26585047]
[1724769346148,0.04156201,155.16,155.12,0.04245047]
[1724769346457,0.04156201,155.16,155.13,3.2232]
[1724769346653,0.04156201,155.16,155.12,0.04245047]
[1724769347449,0.04156201,155.16,155.12,3.19738583]
[1724769347659,6.02,155.22,155.13,3.7549]
[1724769347850,29.71,155.24,155.13,3.7549]
[1724769348456,3.2215,155.22,155.13,7.02453207]
[1724769348657,0.04290219,155.19,155.16,0.04488983]
[1724769349149,3.2212,155.23,155.16,0.04488983]
[1724769349352,3.2212,155.23,155.13,36.73453207]
[1724769349552,3.2208,155.25,155.21,3.2215]
[1724769349751,6.02,155.28,155.19,29.71]
[1724769350151,6.02,155.28,155.22,0.04448251]
[1724769350152,0.04800517,155.25,155.22,0.04448251]
[1724769351159,3.26870517,155.25,155.22,0.04448251]
[1724769351758,0.04800517,155.25,155.22,0.04448251]
[1724769352563,0.04800517,155.25,155.23,3.221]
[1724769353260,0.04800517,155.25,155.22,0.04448251]
[1724769354957,3.2211,155.23,155.22,0.04448251]
[1724769355153,0.04800517,155.25,155.22,0.04448251]
[1724769355553,0.04800517,155.25,155.22,3.26578251]
[1724769355554,3.26870517,155.25,155.22,3.26578251]
[1724769355762,0.04800517,155.25,155.22,0.04448251]
[1724769355957,3.26880517,155.25,155.22,3.26578251]
[1724769356861,0.04800517,155.25,155.22,0.04448251]
[1724769357258,0.04800517,155.25,155.24,3.2209]
[1724769357459,3.22,155.29,155.22,0.04448251]
[1724769357764,3.2198,155.3,155.26,3.2204]
[1724769357966,3.2198,155.3,155.23,29.69]
[1724769358363,0.0470733,155.28,155.25,0.04635502]
[1724769360561,3.2203,155.27,155.25,0.04635502]
[1724769360962,0.0470733,155.28,155.25,0.04635502]
[1724769361163,3.2672733,155.28,155.25,0.04635502]
[1724769361563,0.0470733,155.28,155.25,3.26705502]
[1724769361773,0.0470733,155.28,155.25,0.04635502]
[1724769363364,29.7370733,155.28,155.25,0.04635502]
[1724769363562,3.2205,155.26,155.25,0.04635502]
[1724769364169,6.45731144,155.26,155.25,0.04635502]
[1724769364371,36.14731144,155.26,155.25,0.04635502]
[1724769364776,32.9105,155.26,155.25,0.04635502]
[1724769365071,3.2205,155.26,155.25,0.04635502]
[1724769365266,3.2216,155.21,155.2,1.2731]
[1724769365469,3.2216,155.21,155.18,3.2221]
[1724769366279,3.26712629,155.21,155.18,3.2708759]
[1724769367076,0.04552629,155.21,155.18,0.0487759]
[1724769367575,29.73552629,155.21,155.18,0.0487759]
[1724769368078,3.222,155.19,155.18,0.0487759]
[1724769368270,35.69,155.21,155.12,3.2233]
[1724769369278,0.04935367,155.18,155.15,0.04174226]
[1724769370174,3.2226,155.16,155.15,0.04174226]
[1724769375679,3.2226,155.16,154.84,40.36849455]
[1724769375680,29.69,155.16,154.9,25.78]
[1724769376001,6.74443956,155.15,155.03,2.5783]
[1724769376281,24.77,155.11,155.03,2.5783]
[1724769376473,24.77,155.11,155.03,5.8036]
[1724769376671,24.77,155.11,155.05,0.0481027]
[1724769376672,0.0444823,155.09,155.05,0.0481027]
[1724769376873,3.2245,155.07,155.05,0.0481027]
[1724769377670,3.2245,155.07,154.99,3.14957346]
[1724769377671,3.2247,155.06,154.97,24.77]
[1724769377873,24.77,155.14,155.02,24.77]
[1724769378080,3.2244,155.08,155.02,24.77]
[1724769378282,24.77,155.13,155.01,27.95357737]
[1724769378488,30.77,155.13,155.01,24.77]
[1724769378781,0.04321078,155.09,155.05,0.044497]
[1724769379177,3.2245,155.07,155.05,0.044497]
[1724769380089,0.04321078,155.09,155.05,0.044497]
[1724769380090,3.2247,155.06,155.05,0.044497]
[1724769380271,27.9947,155.06,155.05,0.044497]
[1724769381475,24.77,155.06,154.98,1.2177]
[1724769381878,24.77,155.04,154.94,2.5575]
[1724769382085,3.2261,154.99,154.94,3.759]
[1724769382379,24.77,155.04,154.94,3.759]
[1724769382683,0.04116357,154.98,154.94,3.759]
[1724769382877,0.04116357,154.98,154.91,24.77]
[1724769383082,0.04116357,154.98,154.94,3.2271]
[1724769383285,3.26756357,154.98,154.94,3.2271]
[1724769383677,0.04116357,154.98,154.92,2.4359]
[1724769383879,3.2269,154.96,154.92,2.4359]
[1724769384079,0.04116357,154.98,154.92,2.4359]
[1724769384276,3.2269,154.96,154.92,5.6633]
[1724769384976,0.04116357,154.98,154.92,2.4359]
[1724769385183,0.04116357,154.98,154.93,24.77]
[1724769385386,0.04116357,154.98,154.95,3.2268]
[1724769386078,0.04116357,154.98,154.93,3.2272]
[1724769386279,0.04116357,154.98,154.92,2.4359]
[1724769387177,0.04116357,154.98,154.95,3.2268]
[1724769387376,0.04116357,154.98,154.92,2.4359]
[1724769388976,24.77,154.97,154.89,1.2389]
[1724769389176,0.04784334,154.95,154.89,1.2389]
[1724769389374,3.2281,154.9,154.87,2.4662]
[1724769389575,3.2281,154.9,154.85,3.17568826]
[1724769389576,0.04758404,154.9,154.85,3.17568826]
[1724769389780,0.04758404,154.9,154.73,12.4831]
[1724769389781,24.81758404,154.9,154.73,12.4831]
[1724769390083,0.04854681,154.83,154.82,3.2297]
[1724769390382,6.02,154.9,154.81,24.77]
[1724769390588,34.00276149,154.94,154.81,24.77]
[1724769390787,30.79,154.94,154.82,3.1937052]
[1724769391087,3.2281,154.9,154.86,3.2288]
[1724769391278,24.77,154.92,154.81,24.77]
[1724769391478,0.04903109,154.88,154.85,0.04193761]
[1724769392688,24.77,154.96,154.85,0.04193761]
[1724769392988,9.27283726,154.95,154.85,24.77]
[1724769393185,3.2274,154.93,154.89,3.2281]
[1724769393386,9.27283726,154.95,154.86,1.2496]
[1724769393682,24.81664686,154.92,154.89,0.04423838]
[1724769393886,3.2281,154.9,154.89,0.04423838]
[1724769397385,0.04664686,154.92,154.89,0.04423838]
[1724769397895,3.228,154.9,154.89,0.04423838]
[1724769400186,0.04664686,154.92,154.89,0.04423838]
[1724769400582,0.04664686,154.92,154.9,3.2278]
[1724769400782,0.04664686,154.92,154.89,0.04423838]
[1724769401694,0.04664686,154.92,154.91,3.2278]
[1724769401886,6.0,154.97,154.89,0.04423838]
[1724769402192,3.2269,154.96,154.89,0.04423838]
[1724769402384,3.2269,154.96,154.87,29.3263105]
[1724769402585,6.0,154.98,154.89,24.77]
[1724769402786,0.04237985,154.95,154.93,3.2273]
[1724769403492,0.04237985,154.95,154.94,3.2272]
[1724769404589,0.04237985,154.95,154.92,3.27659003]
[1724769404791,0.04237985,154.95,154.92,0.04909003]
[1724769405390,24.77,154.94,154.92,0.04909003]
[1724769405589,3.2274,154.93,154.92,0.04909003]
[1724769405791,6.04237985,154.95,154.92,0.04909003]
[1724769405998,0.04237985,154.95,154.92,0.04909003]
[1724769406297,0.04237985,154.95,154.94,3.2272]
[1724769406492,24.77,155.03,154.93,2.4705]
[1724769406794,6.74543457,155.02,154.95,3.2268]
[1724769406993,6.0,155.02,154.95,3.2268]
[1724769407199,3.2264,154.98,154.95,3.2268]
[1724769407599,0.04681492,154.98,154.96,3.2267]
[1724769408292,24.9193,155.08,154.95,0.04812151]
[1724769408293,30.77,155.05,154.95,0.04812151]
[1724769408495,1.0,155.15,154.95,24.77]
[1724769408496,28.05621223,155.07,154.95,24.77]
[1724769408696,34.05621223,155.07,155.0,3.2257]
[1724769409195,0.04165718,155.05,155.02,0.04795442]
[1724769409905,3.26665718,155.05,155.02,0.04795442]
[1724769410196,0.04165718,155.05,155.02,0.04795442]
[1724769410701,0.04165718,155.05,155.03,3.2253]
[1724769410888,0.04165718,155.05,155.02,0.04795442]
[1724769411893,0.04165718,155.05,155.03,3.2252]
[1724769412195,0.04165718,155.05,155.02,1.28475442]
[1724769413098,24.81165718,155.05,155.02,0.04795442]
[1724769413288,3.2252,155.04,155.02,0.04795442]
[1724769413699,0.04165718,155.05,155.02,0.04795442]
[1724769414095,6.0,155.11,155.02,0.04795442]
[1724769414295,6.0,155.11,155.02,24.81795442]
[1724769414491,3.2238,155.1,155.06,3.2245]
[1724769414690,6.0,155.11,155.03,2.4648]
[1724769414892,24.77,155.13,155.03,2.4648]
[1724769415092,0.04855113,155.1,155.06,0.04400092]
[1724769415298,3.27235113,155.1,155.06,3.26850092]
[1724769415603,3.27235113,155.1,155.06,0.04400092]
[1724769415801,3.27235113,155.1,155.06,3.26860092]
[1724769415997,3.2241,155.09,155.06,0.04400092]
[1724769416390,0.04855113,155.1,155.06,0.04400092]
[1724769416799,3.27255113,155.1,155.06,0.04400092]
[1724769418299,3.27255113,155.1,155.07,3.2244]
[1724769418501,0.04855113,155.1,155.07,3.2244]
[1724769418701,0.04855113,155.1,155.06,0.04400092]
[1724769418902,3.2234,155.13,155.1,3.2238]
[1724769419093,3.22679494,155.16,155.1,3.2238]
[1724769419298,3.22679494,155.16,155.07,24.77]
[1724769419500,0.74440454,155.15,155.07,24.77]
[1724769419697,3.2236,155.12,155.08,3.2241]
[1724769419892,0.04471898,155.12,155.08,0.04298975]
[1724769420303,3.2238,155.11,155.08,0.04298975]
[1724769420606,0.04471898,155.12,155.08,0.04298975]
[1724769420904,3.2237,155.11,155.08,0.04298975]
[1724769421094,0.04471898,155.12,155.08,0.04298975]
[1724769421297,3.26831898,155.12,155.08,3.26708975]
[1724769421499,0.04471898,155.12,155.08,0.04298975]
[1724769424003,0.04471898,155.12,155.08,1.36378975]
[1724769424906,3.26831898,155.12,155.08,4.58788975]
[1724769425105,0.04471898,155.12,155.08,1.36378975]
[1724769425504,3.2238,155.11,155.08,1.36378975]
[1724769425700,0.04471898,155.12,155.08,0.04298975]
[1724769426103,3.224,155.09,155.08,0.04298975]
[1724769429407,0.04471898,155.12,155.08,0.04298975]
[1724769429908,3.2238,155.11,155.08,0.04298975]
[1724769430110,0.04471898,155.12,155.08,0.04298975]
[1724769430316,3.26831898,155.12,155.08,3.26708975]
[1724769431207,3.2236,155.11,155.08,3.26708975]
[1724769432113,3.2236,155.11,155.08,0.04298975]
[1724769434111,3.2236,155.11,155.08,3.26718975]
[1724769436915,0.04471898,155.12,155.08,0.04298975]
[1724769437215,24.81471898,155.12,155.08,0.04298975]
[1724769437406,3.224,155.09,155.08,0.04298975]
[1724769439508,24.77,155.1,155.0,1.3216]
[1724769439719,24.77,155.07,154.97,2.4946]
[1724769439919,24.77,155.07,154.99,3.2261]
[1724769440116,24.77,155.09,154.97,2.4946]
[1724769440325,24.77,155.09,154.99,24.77]
[1724769440524,3.26601947,155.06,155.02,3.26799005]
[1724769440827,0.04121947,155.06,155.02,3.26799005]
[1724769441016,3.225,155.05,155.02,0.04259005]
[1724769441314,0.04121947,155.06,155.02,0.04259005]
[1724769441714,3.2252,155.04,155.02,0.04259005]
[1724769441915,0.04121947,155.06,155.02,0.04259005]
[1724769442317,3.2253,155.03,155.02,0.04259005]
[1724769442712,0.04121947,155.06,155.02,0.04259005]
[1724769443613,3.225,155.05,155.02,0.04259005]
[1724769444418,3.225,155.05,155.02,3.26809005]
[1724769445520,3.26591947,155.06,155.03,3.2252]
[1724769445724,0.04121947,155.06,155.02,0.04259005]
[1724769446629,0.04121947,155.06,155.04,3.2249]
[1724769447031,0.04121947,155.06,155.02,0.04259005]
[1724769448030,0.04121947,155.06,155.02,3.26799005]
[1724769448939,3.2249,155.05,155.02,3.26799005]
[1724769449427,0.04121947,155.06,155.03,3.2253]
[1724769449629,0.04121947,155.06,155.02,0.04259005]
[1724769449837,0.04121947,155.06,155.02,24.81259005]
[1724769451426,3.26601947,155.06,155.03,3.2253]
[1724769452728,3.225,155.05,155.02,3.26799005]
[1724769453031,0.04121947,155.06,155.02,0.04259005]
[1724769453329,3.2249,155.05,155.02,3.26809005]
[1724769453723,0.04121947,155.06,155.02,0.04259005]
[1724769454925,24.77,155.05,155.02,0.04259005]
[1724769455631,3.2251,155.04,155.02,0.04259005]
[1724769456031,3.225,155.05,155.02,0.04259005]
[1724769456230,0.04121947,155.06,155.02,0.04259005]
[1724769457732,3.26601947,155.06,155.03,3.2252]
[1724769457934,0.04121947,155.06,155.02,0.04259005]
[1724769458231,0.04121947,155.06,155.03,3.2252]
[1724769458532,0.04121947,155.06,155.02,0.04259005]
[1724769458833,0.04121947,155.06,155.03,3.2253]
[1724769459231,3.26591947,155.06,155.03,3.2253]
[1724769459833,0.04121947,155.06,155.04,3.2251]
[1724769460033,0.04121947,155.06,155.02,0.04259005]
[1724769460625,24.77,155.04,155.02,0.04259005]
[1724769460830,24.77,155.04,154.92,24.77]
[1724769461037,3.2264,154.98,154.93,2.4649]
[1724769461340,24.77,155.04,154.93,2.4649]
[1724769461636,0.74527351,155.03,154.93,2.4649]
[1724769461941,0.0471858,155.0,154.96,0.04374018]
[1724769463439,0.0471858,155.0,154.97,3.2265]
[1724769463834,0.0471858,155.0,154.96,0.04374018]
[1724769464038,0.0471858,155.0,154.96,3.27034018]
[1724769464238,0.0471858,155.0,154.96,0.04374018]
[1724769465943,0.0471858,155.0,154.97,3.2264]
[1724769466148,0.0471858,155.0,154.96,0.04374018]
[1724769466643,3.2262,154.99,154.96,0.04374018]
[1724769467234,0.0471858,155.0,154.96,0.04374018]
[1724769468349,3.2263,154.99,154.96,0.04374018]
[1724769469048,3.2264,154.98,154.96,0.04374018]
[1724769469638,3.2262,154.99,154.96,0.04374018]
[1724769470651,0.0471858,155.0,154.96,0.04374018]
[1724769471048,3.2263,154.99,154.96,0.04374018]
[1724769471251,0.0471858,155.0,154.96,0.04374018]
[1724769472253,3.2265,154.97,154.96,0.04374018]
[1724769473053,23.18609538,155.0,154.96,0.04374018]
[1724769473353,0.0471858,155.0,154.96,0.04374018]
[1724769474548,19.8871858,155.0,154.96,0.04374018]
[1724769474951,3.2265,154.97,154.96,0.04374018]
[1724769480953,23.0665,154.97,154.96,0.04374018]
[1724769481153,3.2276,154.93,154.9,2.5027]
[1724769481453,19.84,154.97,154.88,3.2283]
[1724769481852,3.2275,154.93,154.89,3.2281]
[1724769482047,19.84,154.97,154.87,19.84]
[1724769482242,19.84,154.97,154.86,6.97494212]
[1724769482243,0.04516226,154.94,154.93,19.84]
[1724769482446,3.2263,154.99,154.94,3.2271]
[1724769482645,25.82,155.04,154.95,19.84]
[1724769482851,0.74531905,155.03,154.95,19.84]
[1724769483052,0.74531905,155.03,154.97,19.84]
[1724769483249,0.2435,155.1,154.97,19.84]
[1724769483250,19.84,155.08,154.97,19.84]
[1724769483558,19.84,155.08,155.01,0.04634609]
[1724769483559,0.04872217,155.04,155.01,0.04634609]
[1724769483857,3.2254,155.03,155.01,0.04634609]
[1724769484247,3.2255,155.02,155.01,0.04634609]
[1724769484454,0.04872217,155.04,155.01,0.04634609]
[1724769484845,0.04872217,155.04,155.01,3.27194609]
[1724769485860,0.04872217,155.04,155.01,0.04634609]
[1724769486454,3.27382217,155.04,155.01,0.04634609]
[1724769486648,0.04872217,155.04,155.01,0.04634609]
[1724769487251,0.04872217,155.04,155.01,19.88634609]
[1724769487455,0.04872217,155.04,155.02,3.2255]
[1724769487656,0.04872217,155.04,155.01,19.88634609]
[1724769488658,0.04872217,155.04,155.03,3.2253]
[1724769489959,0.04872217,155.04,155.01,19.88634609]
[1724769490158,0.04872217,155.04,155.01,0.04634609]
[1724769490453,0.04872217,155.04,155.01,3.27194609]
[1724769490656,0.04872217,155.04,155.01,0.04634609]
[1724769491554,0.04872217,155.04,155.02,3.2255]
[1724769492054,3.27382217,155.04,155.01,0.04634609]
[1724769493355,3.27382217,155.04,155.02,3.2255]
[1724769494363,0.04872217,155.04,155.02,3.2255]
[1724769498056,3.27382217,155.04,155.01,3.27204609]
[1724769498464,0.04872217,155.04,155.01,0.04634609]
[1724769498963,3.2255,155.03,155.01,0.04634609]
[1724769499559,3.27382217,155.04,155.01,0.04634609]
[1724769500162,3.27382217,155.04,155.01,3.27194609]
[1724769501167,0.04872217,155.04,155.02,3.2255]
[1724769501362,0.04872217,155.04,155.01,0.04634609]
[1724769501566,0.04872217,155.04,155.03,3.2253]
[1724769501868,23.11386416,155.13,155.02,19.84]
[1724769502173,0.74470788,155.12,155.02,19.84]
[1724769502553,3.2241,155.09,155.05,3.2247]
[1724769502757,3.2728096,155.09,155.05,3.27382717]
[1724769502958,0.0487096,155.09,155.05,0.04912717]
[1724769503156,0.0487096,155.09,155.06,21.1635]
[1724769503862,0.0487096,155.09,155.07,3.2243]
[1724769504265,0.0487096,155.09,155.06,4.5481]
[1724769505159,0.0487096,155.09,155.05,0.04912717]
[1724769505368,19.84,155.08,155.05,0.04912717]
[1724769505662,3.2247,155.06,155.05,0.04912717]
[1724769507472,19.84,155.08,155.05,0.04912717]
[1724769507666,0.0487096,155.09,155.05,0.04912717]
[1724769509275,3.2246,155.07,155.05,0.04912717]
[1724769509769,0.0487096,155.09,155.05,0.04912717]
[1724769510375,3.2247,155.06,155.05,0.04912717]
[1724769512079,0.0487096,155.09,155.05,0.04912717]
[1724769512779,3.2247,155.06,155.05,0.04912717]
[1724769515677,0.0487096,155.09,155.05,0.04912717]
[1724769516486,0.0487096,155.09,155.06,19.84]
[1724769517385,0.0487096,155.09,155.06,21.1455]
[1724769517684,0.0487096,155.09,155.08,3.2243]
[1724769520380,3.2233,155.13,155.09,3.224]
[1724769520782,3.2233,155.13,155.09,4.5343]
[1724769521393,3.27165943,155.13,155.09,4.57909687]
[1724769522391,0.04835943,155.13,155.09,1.35509687]
[1724769522583,0.04835943,155.13,155.09,0.04479687]
[1724769522783,3.2238,155.1,155.09,0.04479687]
[1724769523285,3.2236,155.12,155.09,0.04479687]
[1724769523785,0.04835943,155.13,155.09,0.04479687]
[1724769524192,0.04835943,155.13,155.1,19.84]
[1724769524390,0.04835943,155.13,155.11,3.2234]
[1724769524886,0.04835943,155.13,155.12,19.84]